fUST/lending_fUST_20240131
["ID","MTS","AMOUNT","RATE_DAILY","PERIOD"]
[313018746,1706630690041,2992.7707043,0.00019841,2]
[313018747,1706630709712,3290.174459,0.00019841,2]
[313018748,1706630758894,1650.19411677,0.00019841,2]
[313018749,1706630761616,155.02325349,0.00019841,2]
[313018750,1706630762292,1071.11659234,0.00019841,2]
[313018751,1706630765071,938.95628043,0.00019841,2]
[313018752,1706630774892,579.45035215,0.00019841,2]
[313018753,1706630775615,204.67344452,0.00019841,2]
[313018754,1706630777063,715.55377291,0.00019841,2]
[313018758,1706630915297,154.95351395,0.00019742,2]
[313018760,1706630961929,999.0,0.0002,2]
[313018763,1706630991569,300.0,0.0002,2]
[313018770,1706631032228,-494.9489016,0.00020805,2]
[313018771,1706631032239,-527.38076305,0.00020805,2]
[313018772,1706631032248,-318.03285,0.00020806,2]
[313018773,1706631032258,-155.02325349,0.00020807,2]
[313018774,1706631032267,-1581.46279222,0.00020807,2]
[313018775,1706631032276,-171.16808954,0.00020808,2]
[313018776,1706631032285,-1027.59488469,0.00020808,2]
[313018777,1706631032295,-302.3601781,0.00020809,2]
[313018778,1706631032304,-500.0,0.00020809,2]
[313018779,1706631032316,-155.02325349,0.00020809,2]
[313018780,1706631032326,-19726.57954333,0.00020811,2]
[313018781,1706631032335,-20925.73501298,0.00020812,2]
[313018782,1706631032344,-3000.0,0.00020847,2]
[313018783,1706631032353,-200.0,0.00021851,7]
[313018785,1706631032363,-166.666666,0.00021918,2]
[313018786,1706631032373,-280.0,0.00024036,7]
[313018788,1706631032382,-5242.26327892,0.00025113,2]
[313018790,1706631032392,-609.05478859,0.00025113,2]
[313018791,1706631032402,-391.0,0.0002644,15]
[313018792,1706631032412,-169.685682,0.00026576,2]
[313018794,1706631032421,-287.3135433,0.00026863,2]
[313018795,1706631032430,-3437.18,0.0002699,3]
[313018796,1706631032439,-3231.22,0.0002699,3]
[313018797,1706631032448,-639.21141232,0.00026998,2]
[313018798,1706631032458,-208.13455576,0.00026999,2]
[313018799,1706631032467,-58000.0,0.00027,3]
[313018800,1706631032476,-155.16104569,0.00028688,2]
[313018801,1706631032487,-414.69672617,0.00029,2]
[313018802,1706631032496,-200.0,0.00029083,15]
[313018803,1706631032505,-348.0,0.00029083,15]
[313018804,1706631032514,-1121.81735224,0.000295,2]
[313018805,1706631032524,-262.80883366,0.0002971,3]
[313018806,1706631032533,-1789.55798964,0.00029796,2]
[313018807,1706631032543,-620.0257606,0.00029796,2]
[313018808,1706631032552,-561.64006482,0.00029796,2]
[313018809,1706631032561,-155.23217948,0.00029796,2]
[313018810,1706631032571,-225.9965034,0.00029796,2]
[313018811,1706631032580,-3749.22764229,0.00029796,2]
[313018812,1706631032589,-155.24211057,0.00029796,2]
[313018813,1706631032599,-5992.98406482,0.00029796,2]
[313018814,1706631032608,-378.36867229,0.00029796,2]
[313018815,1706631032618,-329.86581438,0.00029796,2]
[313018816,1706631032627,-8863.91555339,0.00029796,2]
[313018817,1706631032637,-1294.9059591,0.00029796,2]
[313018818,1706631032647,-904.27081356,0.00029797,2]
[313018819,1706631032656,-161.25377487,0.00029798,2]
[313018820,1706631032666,-4818.41258945,0.00029798,2]
[313018821,1706631032675,-262.62109468,0.00029798,2]
[313018822,1706631032685,-6933.1761501,0.00029798,2]
[313018823,1706631032694,-310.02325175,0.00029798,2]
[313018824,1706631032704,-18921.17730606,0.00029798,2]
[313018825,1706631032713,-166.8449914,0.00029798,2]
[313018826,1706631032723,-33221.22508975,0.00029798,2]
[313018883,1706631038310,-2692.68,0.0002699,3]
[313018884,1706631038319,-48047.60468966,0.00029798,2]
[313018885,1706631038331,-37000.01230553,0.00029798,2]
[313018886,1706631038340,-1742.71377974,0.00029798,2]
[313018887,1706631038350,-199.40706309,0.00029798,2]
[313018888,1706631038359,-181.99152,0.00029798,2]
[313018889,1706631038369,-765.0593475,0.00029798,2]
[313018890,1706631038379,-751.330121,0.00029799,2]
[313018891,1706631038388,-498.70299282,0.00029799,2]
[313018892,1706631038398,-158.88424578,0.00029799,2]
[313018893,1706631038407,-295.60964093,0.00029799,2]
[313018894,1706631038417,-247576.85427362,0.000298,3]
[313018895,1706631038426,-338.72404559,0.000298,2]
[313018896,1706631038435,-283.82236295,0.000298,20]
[313018897,1706631038444,-2000.0,0.000298,2]
[313018898,1706631038453,-245.662408,0.000298,2]
[313018899,1706631038462,-500.0,0.0002982,10]
[313018900,1706631038471,-500.0,0.0002984,10]
[313018901,1706631038480,-500.0,0.0002986,10]
[313018902,1706631038489,-500.0,0.0002988,10]
[313018903,1706631038498,-500.0,0.000299,10]
[313018904,1706631038508,-500.0,0.0002992,10]
[313018905,1706631038517,-500.0,0.0002994,10]
[313018906,1706631038526,-500.0,0.0002996,10]
[313018907,1706631038536,-500.0,0.0002998,10]
[313018908,1706631038546,-3340.9928411,0.0003,2]
[313018909,1706631038555,-244.61431091,0.0003,4]
[313018910,1706631038567,-2374.95091436,0.0003,2]
[313018911,1706631038577,-2844.4974786,0.0003,2]
[313018912,1706631038586,-1500.0,0.0003,2]
[313018913,1706631038595,-3898.85680648,0.0003,2]
[313018914,1706631038607,-17303.14319352,0.0003,2]
[313018915,1706631038615,-166.31773331,0.0003,10]
[313018916,1706631038625,-1000.0,0.0003,30]
[313018917,1706631038634,-343.09681091,0.0003,4]
[313018918,1706631038643,-22985.47377738,0.0003,14]
[313018919,1706631038652,-1828.0659992,0.0003,2]
[313018920,1706631038661,-1505.84614538,0.0003,2]
[313018921,1706631038670,-14916.04052005,0.0003,2]
[313018922,1706631038681,-1522.75649673,0.0003,2]
[313018926,1706631041338,-3700.8001,0.0003,2]
[313018927,1706631041352,-19371.44948019,0.0003,2]
[313018928,1706631041363,-11550.95340303,0.0003,2]
[313018929,1706631041372,-293.03192856,0.0003,2]
[313019000,1706631043287,-27.40165717,0.0003,2]
[313019002,1706631043297,-500.0,0.0003,11]
[313019004,1706631043308,-588.85405283,0.0003,7]
[313019008,1706631043354,-320.14594717,0.0003,7]
[313019009,1706631043364,-267.40165283,0.0003,7]
[313019011,1706631043376,-698.66993192,0.0003,7]
[313019012,1706631043386,-1589.561407,0.0003,2]
[313019014,1706631043396,-1589.561407,0.0003,2]
[313019016,1706631043407,-805.00725404,0.0003,2]
[313019056,1706631224012,24900.0,0.00019827,2]
[313019061,1706631497666,727.1708674,0.00020386,2]
[313019065,1706631676691,473.4243788,0.00020136,2]
[313019066,1706631753853,250.0,0.00020005,2]
[313019067,1706631801640,151.01812217,0.00028995,30]
[313019075,1706631993562,3600.20208836,0.000206,2]
[313019099,1706632232382,-155.01085076,0.00020624,2]
[313019101,1706632232392,-19889.78216214,0.00020625,2]
[313019103,1706632232400,-155.15271814,0.00020625,2]
[313019104,1706632232409,-617.52240328,0.00020625,2]
[313019106,1706632232418,-1581.46279222,0.00020625,2]
[313019108,1706632232427,-3490.39781052,0.00020626,2]
[313019110,1706632232436,-155.01085076,0.00020626,2]
[313019112,1706632232445,-21712.69652796,0.00020626,2]
[313019114,1706632232454,-2370.8,0.00020626,3]
[313019116,1706632232463,-171.16808954,0.00020628,2]
[313019118,1706632232472,-500.0,0.00020628,2]
[313019120,1706632232481,-155.01085076,0.00020628,2]
[313019122,1706632232492,-556.20773545,0.00020635,2]
[313019124,1706632232501,-904.83318342,0.00020635,2]
[313019126,1706632232510,-494.9489016,0.00020635,2]
[313019128,1706632232519,-156.21203672,0.00020635,2]
[313019130,1706632232528,-20925.73501298,0.00020636,2]
[313019132,1706632232537,-302.3601781,0.00020636,2]
[313019134,1706632232546,-2844.96,0.00020637,3]
[313019136,1706632232555,-265.027375,0.00020661,2]
[313019138,1706632232565,-180.10346389,0.00020667,2]
[313019140,1706632232574,-173.4236806,0.00020678,2]
[313019141,1706632232583,-1383.48718949,0.00021561,2]
[313019142,1706632232592,-200.0,0.00021666,7]
[313019143,1706632232601,-280.0,0.00023832,7]
[313019144,1706632232610,-3394.60090585,0.00024859,2]
[313019145,1706632232619,-155.01860223,0.0002511,2]
[313019146,1706632232628,-155.01085076,0.0002511,2]
[313019147,1706632232636,-155.01085076,0.0002511,2]
[313019148,1706632232645,-155.01085076,0.0002511,2]
[313019149,1706632232654,-155.01085076,0.0002511,2]
[313019150,1706632232663,-155.01085076,0.0002511,2]
[313019151,1706632232671,-155.01085076,0.0002511,2]
[313019152,1706632232681,-155.01085076,0.0002511,2]
[313019153,1706632232692,-155.01085076,0.0002511,2]
[313019154,1706632232701,-2106.51819104,0.0002511,2]
[313019155,1706632232710,-155.29816914,0.00025111,2]
[313019156,1706632232719,-2003.83335234,0.00025111,2]
[313019157,1706632232728,-39413.98977341,0.00025112,2]
[313019158,1706632232737,-27547.17773138,0.00025113,2]
[313019159,1706632232746,-982.9243648,0.00025113,2]
[313019160,1706632232755,-391.0,0.00026215,15]
[313019161,1706632232763,-978.95259375,0.00027357,2]
[313019162,1706632232772,-200.0,0.00028837,15]
[313019163,1706632232781,-348.0,0.00028837,15]
[313019164,1706632232790,-498.66582765,0.00028875,5]
[313019165,1706632232799,-1751.98385727,0.0002899,4]
[313019166,1706632232808,-765.0593475,0.00028995,2]
[313019167,1706632232817,-200.0,0.00029,4]
[313019168,1706632232826,-2077.21874004,0.00029,7]
[313019169,1706632232838,-87517.57583844,0.00029,7]
[313019170,1706632232847,-151.01812217,0.00029587,7]
[313019176,1706632232937,-153.8831869,0.00029589,2]
[313019178,1706632232948,-153.0,0.00029589,2]
[313019180,1706632232957,-153.0,0.00029589,2]
[313019181,1706632232967,-500.0,0.0002982,10]
[313019184,1706632232977,-500.0,0.0002984,10]
[313019185,1706632232987,-500.0,0.0002986,10]
[313019187,1706632232996,-500.0,0.0002988,10]
[313019189,1706632233005,-500.0,0.000299,10]
[313019191,1706632233014,-500.0,0.0002992,10]
[313019193,1706632233024,-500.0,0.0002994,10]
[313019195,1706632233033,-500.0,0.0002996,10]
[313019198,1706632233042,-500.0,0.0002998,10]
[313019200,1706632233052,-3340.9928411,0.0003,2]
[313019201,1706632233061,-280.11858007,0.0003,4]
[313019203,1706632233070,-758.32019536,0.0003,4]
[313019206,1706632233079,-620.96495057,0.0003,4]
[313019207,1706632233088,-424.28163312,0.0003,2]
[313019209,1706632233098,-500.0,0.0003,7]
[313019210,1706632233107,-309.9690062,0.0003,4]
[313019211,1706632233116,-166.31773331,0.0003,10]
[313019212,1706632233126,-2374.95091436,0.0003,2]
[313019213,1706632233135,-244.61431091,0.0003,4]
[313019214,1706632233144,-500.0,0.0003,11]
[313019215,1706632233154,-239.0,0.0003,2]
[313019216,1706632233164,-500.0,0.0003002,11]
[313019217,1706632233174,-500.0,0.0003004,11]
[313019218,1706632233183,-500.0,0.0003006,11]
[313019219,1706632233192,-500.0,0.0003008,11]
[313019220,1706632233202,-500.0,0.000301,11]
[313019221,1706632233211,-500.0,0.0003012,11]
[313019222,1706632233220,-157.894736,0.00030137,2]
[313019223,1706632233229,-500.0,0.0003014,11]
[313019224,1706632233240,-500.0,0.0003016,11]
[313019225,1706632233250,-500.0,0.0003018,11]
[313019226,1706632233260,-151.01812217,0.0003019,4]
[313019227,1706632233269,-500.0,0.000302,11]
[313019228,1706632233278,-2098.16888715,0.00030295,4]
[313019229,1706632233290,-1200.0,0.00030296,4]
[313019230,1706632233299,-213.42126249,0.00030296,4]
[313019231,1706632233308,-982.82266304,0.00030296,4]
[313019232,1706632233318,-4310.40441003,0.00030296,4]
[313019233,1706632233327,-1495.79899104,0.00030296,7]
[313019234,1706632233336,-1967.65555224,0.00030296,7]
[313019235,1706632233345,-500.0,0.00030296,2]
[313019236,1706632233354,-638.77286656,0.00030296,7]
[313019237,1706632233364,-1361.34913906,0.00030297,5]
[313019238,1706632233375,-213.72985406,0.00030298,2]
[313019239,1706632233384,-77553.27239854,0.00030299,2]
[313019240,1706632233400,-936.21000015,0.00030299,2]
[313019260,1706632239107,-527.38076305,0.00020624,2]
[313019261,1706632239117,-3763.66312555,0.00030299,2]
[313019275,1706632242109,-10000.0,0.00030299,2]
[313019276,1706632242126,-21223.54247754,0.00030299,2]
[313019277,1706632242138,-2390.21491387,0.00030299,2]
[313019313,1706632243535,-302.00997705,0.00030289,3]
[313019314,1706632243547,-1673.66002295,0.00030289,3]
[313019315,1706632243557,-7739.71764862,0.00030299,2]
[313019316,1706632243569,-588.21573289,0.00030299,2]
[313019368,1706632756753,461.15255,0.00019732,2]
[313019383,1706632952184,785.791455,0.00019681,2]
[313019389,1706632997205,-1232.11,0.00020657,3]
[313019390,1706632997230,-1478.53,0.00020667,3]
[313019391,1706632997254,-1528.36,0.00020668,3]
[313019392,1706633037295,-1067.73,0.00020652,3]
[313019393,1706633037319,-1065.27,0.00020652,3]
[313019396,1706633071704,-917.48,0.00020645,3]
[313019397,1706633074688,764.57,0.00020636,3]
[313019399,1706633085056,417.95,0.00020636,3]
[313019400,1706633097447,-530.95,0.00020635,3]
[313019401,1706633097472,-219.19,0.00020636,3]
[313019402,1706633106031,442.46,0.00020635,3]
[313019406,1706633117608,368.72,0.00020634,3]
[313019407,1706633129560,307.26,0.00020633,3]
[313019408,1706633139935,254.42,0.00020622,3]
[313019411,1706633164972,-764.38,0.0002062,3]
[313019412,1706633164999,-136.62,0.00020621,3]
[313019415,1706633181917,-636.98,0.00020617,3]
[313019416,1706633181942,-406.02,0.00020621,3]
[313019418,1706633204963,5000.0,0.00020006,5]
[313019424,1706633243960,152.85390664,0.00019706,2]
[313019425,1706633243987,77.72236836,0.00019706,2]
[313019427,1706633312754,400.70447563,0.00019706,2]
[313019429,1706633328806,5000.0,0.00019964,2]
[313019430,1706633332711,183.64401756,0.00019706,2]
[313019449,1706633388500,5070.0407543,0.00019562,2]
[313019453,1706633415576,530.76,0.00020549,3]
[313019454,1706633424123,155.00775039,0.0002055,2]
[313019455,1706633427814,828.69,0.00020544,3]
[313019456,1706633428692,1243.97055445,0.0002055,2]
[313019457,1706633429630,155.00775039,0.0002055,2]
[313019489,1706633432580,-494.9489016,0.00020551,2]
[313019490,1706633432590,-3490.39781052,0.00020551,2]
[313019491,1706633432599,-262.71950685,0.00020551,2]
[313019492,1706633432608,-562.3258598,0.00020551,2]
[313019493,1706633432617,-37009.8984698,0.00020551,2]
[313019494,1706633432626,-11206.04988173,0.00020551,2]
[313019495,1706633432641,-72607.25397207,0.00020551,2]
[313019496,1706633432651,-161.25377487,0.00020552,2]
[313019497,1706633432660,-155.00775039,0.00020552,2]
[313019498,1706633432669,-329.99464709,0.00020552,2]
[313019499,1706633432678,-5480.67645079,0.00020552,2]
[313019500,1706633432688,-19726.57954333,0.00020552,2]
[313019501,1706633432697,-20899.05725792,0.00020552,2]
[313019502,1706633432706,-181.23168733,0.00020553,2]
[313019503,1706633432716,-3750.33849076,0.00020553,2]
[313019504,1706633432728,-1996.16717164,0.00020553,2]
[313019505,1706633432737,-1743.33360655,0.00020553,2]
[313019506,1706633432746,-527.38076305,0.00020554,2]
[313019507,1706633432757,-155.00620025,0.00020554,2]
[313019508,1706633432768,-620.23996484,0.00020554,2]
[313019509,1706633432777,-522.79204852,0.00020554,2]
[313019510,1706633432786,-155.00620025,0.00020554,2]
[313019511,1706633432795,-18927.35300975,0.00020554,2]
[313019512,1706633432804,-617.52240328,0.00020555,2]
[313019513,1706633432814,-589.1714927,0.00020555,2]
[313019514,1706633432823,-155.00620025,0.00020555,2]
[313019515,1706633432832,-2041.75712479,0.00020555,2]
[313019516,1706633432841,-199.46539492,0.00020557,2]
[313019517,1706633432850,-500.0,0.00020557,2]
[313019518,1706633432859,-175.43157375,0.00020557,2]
[313019519,1706633432868,-155.00620025,0.00020557,2]
[313019520,1706633432878,-556.20773545,0.00020557,2]
[313019521,1706633432888,-302.3601781,0.00020557,2]
[313019522,1706633432897,-155.00620025,0.00020557,2]
[313019523,1706633432906,-167.24069426,0.00020557,2]
[313019524,1706633432915,-21712.69652796,0.00020557,2]
[313019525,1706633432924,-155.00620025,0.00020558,2]
[313019526,1706633432933,-4819.97769138,0.00020558,2]
[313019527,1706633432942,-19889.78216214,0.00020559,2]
[313019528,1706633432952,-292.55349425,0.00020564,2]
[313019529,1706633432961,-1687.92713688,0.000206,2]
[313019530,1706633432970,-1331.63830181,0.00020603,2]
[313019531,1706633432980,-2005.37316766,0.00020603,2]
[313019532,1706633432989,-2005.37316766,0.00020603,2]
[313019533,1706633432999,-2005.37316766,0.00020603,2]
[313019534,1706633433008,-2005.37316766,0.00020603,2]
[313019535,1706633433019,-2005.37316766,0.00020603,2]
[313019536,1706633433028,-155.01085076,0.00020625,2]
[313019537,1706633433037,-154.9690062,0.00020748,2]
[313019538,1706633433047,-155.00775039,0.00020861,2]
[313019539,1706633433057,-2077.00381468,0.00020863,2]
[313019540,1706633433066,-200.0,0.00021582,7]
[313019541,1706633433075,-280.0,0.0002374,7]
[313019542,1706633433084,-1829.35161493,0.00025,2]
[313019543,1706633433188,-50000.0,0.00025293,2]
[313019544,1706633433199,-50000.0,0.00025293,2]
[313019545,1706633433208,-68235.52787008,0.00025293,2]
[313019546,1706633433218,-8989.73853122,0.00025293,2]
[313019547,1706633433227,-151.0,0.00025293,2]
[313019548,1706633433236,-151.0,0.00025293,2]
[313019549,1706633433246,-1229.03326727,0.00025293,2]
[313019550,1706633433255,-391.0,0.00026114,7]
[313019551,1706633433268,-151.0,0.00026895,2]
[313019552,1706633433277,-978.95259375,0.00027267,2]
[313019553,1706633433286,-157.34854487,0.00028468,2]
[313019554,1706633433295,-151.0,0.00028498,2]
[313019555,1706633433304,-7016.82341929,0.00028713,5]
[313019556,1706633433314,-200.0,0.00028725,15]
[313019557,1706633433323,-348.0,0.00028725,15]
[313019558,1706633433332,-1934.46924266,0.00029,2]
[313019559,1706633433341,-155.02635448,0.00029,2]
[313019560,1706633433351,-293.03192856,0.000295,2]
[313019561,1706633433361,-230.576275,0.00029559,2]
[313019562,1706633433370,-500.0,0.0002982,10]
[313019563,1706633433379,-500.0,0.0002984,10]
[313019564,1706633433388,-500.0,0.0002986,10]
[313019565,1706633433397,-500.0,0.0002988,10]
[313019566,1706633433406,-500.0,0.000299,10]
[313019567,1706633433415,-500.0,0.0002992,10]
[313019568,1706633433424,-500.0,0.0002994,10]
[313019569,1706633433433,-500.0,0.0002996,10]
[313019570,1706633433442,-500.0,0.0002998,10]
[313019571,1706633433452,-689.49476826,0.0003,4]
[313019572,1706633433461,-3340.9928411,0.0003,2]
[313019573,1706633433470,-2374.95091436,0.0003,2]
[313019574,1706633433480,-244.61431091,0.0003,4]
[313019575,1706633433489,-166.31773331,0.0003,10]
[313019576,1706633433498,-1000.0,0.0003,30]
[313019577,1706633433507,-500.0,0.0003,7]
[313019578,1706633433519,-500.0,0.0003,11]
[313019579,1706633433528,-219.0,0.0003,2]
[313019580,1706633433537,-999.8,0.0003,2]
[313019581,1706633433545,-500.0,0.0003002,11]
[313019582,1706633433554,-500.0,0.00030024,2]
[313019583,1706633433563,-500.0,0.0003004,11]
[313019584,1706633433572,-500.0,0.0003006,11]
[313019585,1706633433582,-500.0,0.0003008,11]
[313019586,1706633433591,-500.0,0.000301,11]
[313019587,1706633433600,-151.0,0.00030101,2]
[313019588,1706633433609,-500.0,0.0003012,11]
[313019589,1706633433618,-157.894736,0.00030137,2]
[313019590,1706633433627,-500.0,0.0003014,11]
[313019591,1706633433636,-155.3077794,0.00030145,4]
[313019592,1706633433645,-500.0,0.0003016,11]
[313019593,1706633433654,-500.0,0.0003018,11]
[313019594,1706633433664,-219.36225793,0.00030196,2]
[313019595,1706633433673,-64082.15009347,0.00030197,2]
[313019596,1706633433683,-151.0,0.00030197,2]
[313019597,1706633433692,-151.0,0.00030197,2]
[313019598,1706633433701,-2291.115653,0.00030197,2]
[313019599,1706633433711,-2291.115653,0.00030197,2]
[313019600,1706633433721,-287.482269,0.00030197,2]
[313019601,1706633433730,-151.0,0.00030197,2]
[313019602,1706633433739,-500.0,0.000302,11]
[313019603,1706633433748,-155.18280835,0.00030294,4]
[313019604,1706633433757,-250.51124722,0.00030294,4]
[313019605,1706633433770,-1774.09643899,0.00030294,4]
[313019606,1706633433779,-177.12019317,0.00030294,4]
[313019607,1706633433788,-3679.03599959,0.00030294,4]
[313019608,1706633433797,-3969.42099078,0.00030294,4]
[313019609,1706633433808,-179.71987076,0.00030294,4]
[313019610,1706633433817,-213.63828933,0.00030294,4]
[313019611,1706633433827,-683.44618662,0.00030294,4]
[313019612,1706633433837,-155.70389166,0.00030294,4]
[313019613,1706633433847,-2019.73680266,0.00030294,2]
[313019614,1706633433857,-155.01085076,0.00030294,4]
[313019615,1706633433867,-821.26860499,0.00030295,4]
[313019616,1706633433876,-540.44209488,0.00030295,4]
[313019617,1706633433886,-5914.98156403,0.00030295,4]
[313019618,1706633433897,-11704.23560941,0.00030297,2]
[313019619,1706633433907,-155.38898574,0.00030297,4]
[313019620,1706633433916,-7002.45846182,0.00030297,4]
[313019621,1706633433926,-1697.98790078,0.00030297,4]
[313019622,1706633433936,-600.0,0.00030297,4]
[313019623,1706633433946,-5090.43949674,0.00030297,4]
[313019624,1706633434020,3326.84002864,0.0002055,2]
[313019625,1706633434077,166.90788547,0.0002055,2]
[313019627,1706633438253,690.58,0.00020541,3]
[313019757,1706633443095,-2000.0,0.00028909,2]
[313019758,1706633443104,-2286.3773168,0.00030297,4]
[313019760,1706633443114,-1331.89001727,0.00030297,4]
[313019762,1706633443123,-1032.02745041,0.00030297,4]
[313019764,1706633443133,-176.11959902,0.00030297,4]
[313019766,1706633443142,-4724.75315233,0.00030297,3]
[313019768,1706633443152,-155.3934962,0.00030297,4]
[313019770,1706633443161,-432.80846515,0.00030297,7]
[313019826,1706633443682,-4567.19153485,0.00030297,7]
[313019827,1706633443691,-642.1241808,0.00030297,7]
[313019828,1706633443700,-153.096833,0.00030297,2]
[313019829,1706633443710,-151.0,0.00030297,2]
[313019830,1706633443719,-2291.115653,0.00030297,2]
[313019832,1706633443728,-2291.115653,0.00030297,2]
[313019833,1706633443737,-141.266773,0.00030297,2]
[313019866,1706633446729,-1719.86996637,0.00025,2]
[313019867,1706633446739,-9.733227,0.00030297,2]
[313019868,1706633446748,-2105.7958969,0.00030298,4]
[313019869,1706633446758,-861.60789028,0.00030298,4]
[313019902,1706633660127,310.4185377,0.000176,2]
[313019906,1706633716100,3000.0,0.00020439,2]
[313019907,1706633731857,270.6612929,0.00019884,2]
[313019917,1706633762220,1672.277848,0.00019764,2]
[313019938,1706633937158,159.29949,0.00020087,2]
[313019942,1706634005327,-70786.0,0.00044197,32]
[313019943,1706634005352,-10982.58570896,0.00044197,31]
[313019944,1706634005377,-30000.0,0.00044197,31]
[313019945,1706634005402,-8211.43586016,0.00044197,31]
[313019946,1706634005428,-500.0,0.00044197,120]
[313019947,1706634005453,-2357.67406482,0.00044197,120]
[313019948,1706634005478,-1433.5512136,0.00044197,120]
[313019949,1706634005503,-870.2120518,0.00044197,120]
[313019950,1706634005527,-3324.55272939,0.00044197,120]
[313019951,1706634005549,-561.0922385,0.00044197,120]
[313019952,1706634005573,-621.4123023,0.00044197,120]
[313019953,1706634005596,-489.36364216,0.00044197,120]
[313019954,1706634005623,-1062.71209003,0.00044197,120]
[313019955,1706634005646,-941.88631747,0.00044197,120]
[313019956,1706634005668,-2891.28749203,0.00044197,120]
[313019957,1706634005691,-2444.88125086,0.00044197,120]
[313019958,1706634005715,-314.15255347,0.00044197,120]
[313019959,1706634005737,-4187.5443949,0.00044197,35]
[313019960,1706634005762,-1635.1655797,0.00044197,120]
[313019961,1706634005786,-2728.21138049,0.00044197,60]
[313019962,1706634005809,-155.02635348,0.00044197,120]
[313019963,1706634005833,-150.39758786,0.00044197,120]
[313019964,1706634005856,-3030.9863359,0.00044197,120]
[313019965,1706634005879,-500.0,0.00044197,120]
[313019968,1706634021212,-1000.0,0.00031,31]
[313019969,1706634021243,-356.0306,0.000328,120]
[313019970,1706634021270,-1000.0,0.00033,33]
[313019971,1706634021295,-168.333219,0.00033973,35]
[313019972,1706634021318,-168.333219,0.00033973,52]
[313019973,1706634021345,-168.333219,0.00033973,69]
[313019974,1706634021369,-168.333219,0.00033973,86]
[313019975,1706634021392,-168.333219,0.00033973,103]
[313019976,1706634021415,-168.333219,0.00033973,119]
[313019977,1706634021441,-1000.0,0.00035,35]
[313019978,1706634021466,-1684.636586,0.00035616,120]
[313019979,1706634021490,-1000.0,0.00037,37]
[313019980,1706634021610,-1590.09884624,0.00038,120]
[313019981,1706634021633,-250.0,0.00038,120]
[313019982,1706634021676,-527.35253399,0.0003863,31]
[313019983,1706634021698,-500.0,0.0003863,31]
[313019984,1706634021720,-500.0,0.0003863,31]
[313019985,1706634021743,-500.0,0.0003863,31]
[313019986,1706634021766,-500.0,0.0003863,31]
[313019987,1706634021788,-500.0,0.0003863,31]
[313019988,1706634021810,-500.0,0.0003863,31]
[313019989,1706634021833,-500.0,0.0003863,31]
[313019990,1706634021857,-500.0,0.0003863,31]
[313019991,1706634021879,-500.0,0.0003863,31]
[313019992,1706634021901,-501.99042524,0.0003863,31]
[313019993,1706634021924,-500.0,0.0003863,31]
[313019994,1706634021947,-500.0,0.0003863,31]
[313019995,1706634021970,-500.0,0.0003863,31]
[313019996,1706634021993,-500.0,0.0003863,31]
[313019997,1706634022016,-509.3,0.0003863,31]
[313019998,1706634022038,-267.12065884,0.0003863,31]
[313019999,1706634022060,-500.0,0.0003863,31]
[313020000,1706634022083,-500.0,0.0003863,31]
[313020001,1706634022107,-500.0,0.0003863,31]
[313020002,1706634022132,-500.0,0.0003863,31]
[313020003,1706634022156,-500.0,0.0003863,31]
[313020004,1706634022180,-500.0,0.0003863,31]
[313020005,1706634022203,-500.0,0.0003863,31]
[313020006,1706634022226,-500.14946707,0.0003863,31]
[313020007,1706634022253,-500.0,0.0003863,31]
[313020008,1706634022279,-500.0,0.0003863,31]
[313020009,1706634022302,-508.45,0.0003863,31]
[313020010,1706634022327,-500.0,0.0003863,31]
[313020011,1706634022351,-500.0,0.0003863,31]
[313020012,1706634022375,-500.0,0.0003863,31]
[313020013,1706634022398,-500.0,0.0003863,31]
[313020014,1706634022421,-4166.66,0.0003863,31]
[313020015,1706634022445,-885.04,0.0003863,31]